[Event "Snabb-SM för veteraner, 50+ 2019"]
[Site "Schackcentrum, Vegagatan 20, Gothenburg, Sweden"]
[Date "2019.10.06"]
[Round "7.4"]
[White "Andersson, Johan"]
[Black "Wesslen, Ulf"]
[Result "1-0"]
[TimeControl "15 minutes + 10 seconds per move from move one"]
[WhiteFideId "1703935"]
[BlackFideId "1705199"]
[WhiteElo "2152"]
[BlackElo "1971"]

1. e4 {[%clk 00:15:17]} {[%emt 00:00:02]} Nf6 {[%clk 00:15:13]} {[%emt
00:00:08]} 2. e5 {[%clk 00:15:24]} {[%emt 00:00:03]} Nd5 {[%clk 00:15:20]}
{[%emt 00:00:02]} 3. d4 {[%clk 00:15:31]} {[%emt 00:00:04]} d6 {[%clk
00:15:28]} {[%emt 00:00:02]} 4. c4 {[%clk 00:15:38]} {[%emt 00:00:03]} Nb6
{[%clk 00:15:33]} {[%emt 00:00:05]} 5. exd6 {[%clk 00:15:44]} {[%emt 00:00:03]}
cxd6 {[%clk 00:15:01]} {[%emt 00:00:42]} 6. Nc3 {[%clk 00:15:46]} {[%emt
00:00:09]} g6 {[%clk 00:14:10]} {[%emt 00:01:01]} 7. Be3 {[%clk 00:15:45]}
{[%emt 00:00:11]} Bg7 {[%clk 00:14:11]} {[%emt 00:00:08]} 8. Rc1 {[%clk
00:15:46]} {[%emt 00:00:09]} O-O {[%clk 00:13:42]} {[%emt 00:00:39]} 9. b3
{[%clk 00:15:52]} {[%emt 00:00:04]} a5 {[%clk 00:12:14]} {[%emt 00:01:39]} 10.
Nf3 {[%clk 00:14:29]} {[%emt 00:01:32]} a4 {[%clk 00:10:46]} {[%emt 00:01:39]}
11. Be2 {[%clk 00:12:31]} {[%emt 00:02:07]} axb3 {[%clk 00:08:43]} {[%emt
00:02:14]} 12. axb3 {[%clk 00:12:37]} {[%emt 00:00:04]} Bg4 {[%clk 00:07:50]}
{[%emt 00:01:03]} 13. h3 {[%clk 00:11:29]} {[%emt 00:01:17]} Bxf3 {[%clk
00:07:10]} {[%emt 00:00:51]} 14. Bxf3 {[%clk 00:11:37]} {[%emt 00:00:02]} Nc6
{[%clk 00:07:17]} {[%emt 00:00:02]} 15. O-O {[%clk 00:11:26]} {[%emt 00:00:21]}
h6 {[%clk 00:05:16]} {[%emt 00:02:11]} 16. Qd2 {[%clk 00:09:57]} {[%emt
00:01:39]} Kh7 {[%clk 00:05:11]} {[%emt 00:00:15]} 17. Ra1 {[%clk 00:07:52]}
{[%emt 00:02:15]} Qd7 {[%clk 00:03:46]} {[%emt 00:01:36]} 18. d5 {[%clk
00:06:24]} {[%emt 00:01:38]} Ne5 {[%clk 00:03:54]} {[%emt 00:00:02]} 19. Be2
{[%clk 00:03:18]} {[%emt 00:03:16]} Rxa1 {[%clk 00:03:08]} {[%emt 00:00:56]} 20.
Rxa1 {[%clk 00:03:26]} {[%emt 00:00:01]} Qd8 {[%clk 00:03:17]} 21. Ra7 {[%clk
00:02:53]} {[%emt 00:00:44]} Ned7 {[%clk 00:03:01]} {[%emt 00:00:25]} 22. Rxb7
{[%clk 00:02:49]} {[%emt 00:00:15]} Qa8 {[%clk 00:03:10]} 23. Rxb6 {[%clk
00:02:43]} {[%emt 00:00:15]} Nxb6 {[%clk 00:03:12]} {[%emt 00:00:08]} 24. Bxb6
{[%clk 00:02:52]} {[%emt 00:00:01]} Qa1+ {[%clk 00:03:21]} 25. Nd1 {[%clk
00:02:58]} {[%emt 00:00:04]} Rb8 {[%clk 00:03:30]} {[%emt 00:00:02]} 26. Qe3
{[%clk 00:02:25]} {[%emt 00:00:42]} f5 {[%clk 00:03:29]} {[%emt 00:00:11]} 27.
g3 {[%clk 00:02:12]} {[%emt 00:00:23]} Rb7 {[%clk 00:03:35]} {[%emt 00:00:04]}
28. b4 {[%clk 00:02:12]} {[%emt 00:00:10]} Qa2 {[%clk 00:03:07]} {[%emt
00:00:38]} 29. c5 {[%clk 00:01:58]} {[%emt 00:00:24]} Be5 {[%clk 00:02:12]}
{[%emt 00:01:05]} 30. Bf3 {[%clk 00:01:51]} {[%emt 00:00:16]} Qb1 {[%clk
00:02:03]} {[%emt 00:00:21]} 31. Qa3 {[%clk 00:01:42]} {[%emt 00:00:16]} Rb8
{[%clk 00:01:55]} {[%emt 00:00:20]} 32. Qa7 {[%clk 00:01:49]} {[%emt 00:00:04]}
Re8 {[%clk 00:02:04]} {[%emt 00:00:01]} 33. Qd7 {[%clk 00:01:51]} {[%emt
00:00:07]} Rg8 {[%clk 00:02:01]} {[%emt 00:00:13]} 34. Qxe7+ {[%clk 00:01:37]}
{[%emt 00:00:25]} Rg7 {[%clk 00:02:11]} 35. Qe6 {[%clk 00:01:40]} {[%emt
00:00:05]} Qxb4 {[%clk 00:02:19]} {[%emt 00:00:04]} 36. Kg2 {[%clk 00:01:20]}
{[%emt 00:00:29]} Qd2 {[%clk 00:02:15]} {[%emt 00:00:15]} 37. c6 {[%clk
00:01:23]} {[%emt 00:00:07]} Bxg3 {[%clk 00:01:55]} {[%emt 00:00:29]} 38. c7
{[%clk 00:00:56]} {[%emt 00:00:38]} Be5 {[%clk 00:01:39]} {[%emt 00:00:26]} 39.
c8=Q {[%clk 00:01:00]} {[%emt 00:00:06]} Qg5+ {[%clk 00:01:48]} {[%emt
00:00:01]} 40. Kf1 {[%clk 00:01:07]} {[%emt 00:00:02]} Qf4 {[%clk 00:01:47]}
{[%emt 00:00:11]} 41. Bg2 {[%clk 00:01:06]} {[%emt 00:00:09]} Qd2 {[%clk
00:01:53]} {[%emt 00:00:07]} 42. Bf3 {[%clk 00:01:06]} {[%emt 00:00:09]} Qd3+
{[%clk 00:02:01]} {[%emt 00:00:02]} 43. Be2 {[%clk 00:01:07]} {[%emt 00:00:10]}
Qxh3+ {[%clk 00:02:10]} {[%emt 00:00:01]} 44. Ke1 {[%clk 00:01:15]} {[%emt
00:00:01]} Qh1+ {[%clk 00:02:16]} {[%emt 00:00:04]} 45. Kd2 {[%clk 00:01:20]}
{[%emt 00:00:05]} Qe4 {[%clk 00:02:24]} {[%emt 00:00:03]} 46. Qc2 {[%clk
00:01:24]} {[%emt 00:00:06]} Bf4+ {[%clk 00:02:24]} {[%emt 00:00:09]} 47. Be3
{[%clk 00:01:33]} {[%emt 00:00:02]} Qb4+ {[%clk 00:02:34]} 48. Qc3 {[%clk
00:01:35]} {[%emt 00:00:07]} 1-0

[Event "Snabb-SM för veteraner, 50+ 2019"]
[Site "Schackcentrum, Vegagatan 20, Gothenburg, Sweden"]
[Date "2019.10.06"]
[Round "7.5"]
[White "Svensson, Sven"]
[Black "Andreasson, Ingvar"]
[Result "1-0"]
[TimeControl "15 minutes + 10 seconds per move from move one"]
[WhiteFideId "1709240"]
[BlackFideId "1700294"]
[WhiteElo "2158"]
[BlackElo "2413"]

1. d4 {[%clk 00:15:19]} b5 {[%clk 00:15:13]} {[%emt 00:00:07]} 2. e4 {[%clk
00:14:56]} {[%emt 00:00:33]} Bb7 {[%clk 00:15:18]} {[%emt 00:00:05]} 3. Bd3
{[%clk 00:15:03]} {[%emt 00:00:04]} e6 {[%clk 00:14:40]} {[%emt 00:00:47]} 4.
Nf3 {[%clk 00:14:04]} {[%emt 00:01:10]} c5 {[%clk 00:14:25]} {[%emt 00:00:24]}
5. dxc5 {[%clk 00:14:10]} {[%emt 00:00:05]} Bxc5 {[%clk 00:14:27]} {[%emt
00:00:08]} 6. Qe2 {[%clk 00:14:12]} {[%emt 00:00:09]} a6 {[%clk 00:13:51]}
{[%emt 00:00:46]} 7. O-O {[%clk 00:14:06]} {[%emt 00:00:16]} Nc6 {[%clk
00:13:19]} {[%emt 00:00:41]} 8. c3 {[%clk 00:13:37]} {[%emt 00:00:40]} Nge7
{[%clk 00:11:45]} {[%emt 00:01:44]} 9. b4 {[%clk 00:11:16]} {[%emt 00:02:31]}
Bd6 {[%clk 00:09:32]} {[%emt 00:02:21]} 10. a4 {[%clk 00:10:34]} {[%emt
00:00:54]} Qc7 {[%clk 00:06:49]} {[%emt 00:02:52]} 11. axb5 {[%clk 00:08:55]}
{[%emt 00:01:50]} axb5 {[%clk 00:06:53]} {[%emt 00:00:06]} 12. Rxa8+ {[%clk
00:09:03]} {[%emt 00:00:01]} Bxa8 {[%clk 00:07:01]} {[%emt 00:00:02]} 13. Bxb5
{[%clk 00:09:11]} {[%emt 00:00:02]} Ng6 {[%clk 00:06:50]} {[%emt 00:00:21]} 14.
Rd1 {[%clk 00:04:43]} {[%emt 00:04:40]} O-O {[%clk 00:06:07]} {[%emt 00:00:52]}
15. h3 {[%clk 00:03:19]} {[%emt 00:01:34]} Bf4 {[%clk 00:05:20]} {[%emt
00:00:56]} 16. Bxf4 {[%clk 00:02:41]} {[%emt 00:00:49]} Qxf4 {[%clk 00:03:36]}
{[%emt 00:01:53]} 17. Rxd7 {[%clk 00:02:13]} {[%emt 00:00:38]} Nce5 {[%clk
00:03:37]} {[%emt 00:00:09]} 18. Nxe5 {[%clk 00:02:12]} {[%emt 00:00:12]} Qxe5
{[%clk 00:03:27]} {[%emt 00:00:19]} 19. g3 {[%clk 00:00:45]} {[%emt 00:01:38]}
h5 {[%clk 00:02:18]} {[%emt 00:01:18]} 20. h4 {[%clk 00:00:20]} {[%emt
00:00:36]} Qb8 {[%clk 00:02:26]} {[%emt 00:00:02]} 21. Ba4 {[%clk 00:00:22]}
{[%emt 00:00:07]} Ne5 {[%clk 00:02:30]} {[%emt 00:00:07]} 22. Rd1 {[%clk
00:00:24]} {[%emt 00:00:08]} Ng4 {[%clk 00:02:29]} {[%emt 00:00:11]} 23. Nd2
{[%clk 00:00:24]} {[%emt 00:00:10]} Rc8 {[%clk 00:02:23]} {[%emt 00:00:15]} 24.
Rc1 {[%clk 00:00:29]} {[%emt 00:00:05]} Qa7 {[%clk 00:02:23]} {[%emt 00:00:11]}
25. Bd1 {[%clk 00:00:27]} {[%emt 00:00:08]} Qa3 {[%clk 00:02:04]} {[%emt
00:00:32]} 26. Nb3 {[%clk 00:00:36]} {[%emt 00:00:02]} Qa7 {[%clk 00:01:58]}
{[%emt 00:00:16]} 27. Ra1 {[%clk 00:00:33]} {[%emt 00:00:13]} Qb8 {[%clk
00:01:56]} {[%emt 00:00:12]} 28. Nc5 {[%clk 00:00:40]} {[%emt 00:00:03]} Qe5
{[%clk 00:02:04]} {[%emt 00:00:01]} 29. Qd3 {[%clk 00:00:39]} {[%emt 00:00:12]}
Qb8 {[%clk 00:01:07]} {[%emt 00:01:07]} 30. Bf3 {[%clk 00:00:38]} {[%emt
00:00:12]} Rd8 {[%clk 00:01:02]} {[%emt 00:00:15]} 31. Qe2 {[%clk 00:00:45]}
{[%emt 00:00:03]} Qe5 {[%clk 00:01:08]} {[%emt 00:00:03]} 32. Rc1 {[%clk
00:00:44]} {[%emt 00:00:12]} Nf6 {[%clk 00:00:59]} {[%emt 00:00:18]} 33. Bg2
{[%clk 00:00:49]} {[%emt 00:00:05]} Qc7 {[%clk 00:00:59]} {[%emt 00:00:10]} 34.
Rd1 {[%clk 00:00:55]} {[%emt 00:00:04]} Rc8 {[%clk 00:00:59]} {[%emt 00:00:10]}
35. Rd3 {[%clk 00:00:52]} {[%emt 00:00:13]} Qa7 {[%clk 00:00:52]} {[%emt
00:00:16]} 36. Qd1 {[%clk 00:00:55]} {[%emt 00:00:06]} Qb8 {[%clk 00:00:31]}
{[%emt 00:00:32]} 37. Rd6 {[%clk 00:00:55]} {[%emt 00:00:09]} Ne8 {[%clk
00:00:24]} {[%emt 00:00:17]} 38. Rd3 {[%clk 00:01:02]} {[%emt 00:00:04]} Nf6
{[%clk 00:00:30]} {[%emt 00:00:04]} 39. Rd4 {[%clk 00:00:47]} {[%emt 00:00:24]}
Bc6 {[%clk 00:00:30]} {[%emt 00:00:11]} 40. Qe1 {[%clk 00:00:23]} {[%emt
00:00:34]} Ng4 {[%clk 00:00:11]} {[%emt 00:00:28]} 41. Bf3 {[%clk 00:00:24]}
{[%emt 00:00:09]} Nf6 {[%clk 00:00:19]} {[%emt 00:00:03]} 42. Qd1 {[%clk
00:00:27]} {[%emt 00:00:07]} g6 {[%clk 00:00:27]} {[%emt 00:00:02]} 43. Qd2
{[%clk 00:00:20]} {[%emt 00:00:17]} Kg7 {[%clk 00:00:34]} {[%emt 00:00:04]} 44.
Rd6 {[%clk 00:00:19]} {[%emt 00:00:10]} Qa8 {[%clk 00:00:36]} {[%emt 00:00:09]}
45. Rd4 {[%clk 00:00:27]} {[%emt 00:00:03]} e5 {[%clk 00:00:42]} {[%emt
00:00:03]} 46. Rd6 {[%clk 00:00:18]} {[%emt 00:00:19]} Nxe4 {[%clk 00:00:37]}
{[%emt 00:00:15]} 47. Bxe4 {[%clk 00:00:17]} {[%emt 00:00:11]} Bxe4 {[%clk
00:00:46]} 48. Nxe4 {[%clk 00:00:25]} {[%emt 00:00:02]} Qxe4 {[%clk 00:00:56]}
49. Rd3 {[%clk 00:00:27]} {[%emt 00:00:09]} Ra8 {[%clk 00:00:54]} {[%emt
00:00:12]} 50. Qd1 {[%clk 00:00:11]} {[%emt 00:00:27]} Ra2 {[%clk 00:00:47]}
{[%emt 00:00:15]} 51. Rd2 {[%clk 00:00:20]} {[%emt 00:00:02]} Ra3 {[%clk
00:00:55]} {[%emt 00:00:02]} 52. Rc2 {[%clk 00:00:25]} {[%emt 00:00:04]} Qc4
{[%clk 00:00:59]} {[%emt 00:00:06]} 53. Qc1 {[%clk 00:00:32]} {[%emt 00:00:03]}
Qa6 {[%clk 00:01:03]} {[%emt 00:00:06]} 54. Rb2 {[%clk 00:00:31]} {[%emt
00:00:11]} Qc4 {[%clk 00:00:39]} {[%emt 00:00:34]} 55. Rc2 {[%clk 00:00:39]}
{[%emt 00:00:02]} Rb3 {[%clk 00:00:37]} {[%emt 00:00:12]} 56. Kh2 {[%clk
00:00:41]} {[%emt 00:00:07]} Qd3 {[%clk 00:00:28]} {[%emt 00:00:19]} 57. c4
{[%clk 00:00:14]} {[%emt 00:00:38]} Rxb4 {[%clk 00:00:37]} {[%emt 00:00:02]} 58.
c5 {[%clk 00:00:23]} Qb5 {[%clk 00:00:46]} 59. c6 {[%clk 00:00:31]} {[%emt
00:00:02]} Rb1 {[%clk 00:00:55]} 60. c7 {[%clk 00:00:39]} {[%emt 00:00:02]}
Rxc1 {[%clk 00:00:57]} {[%emt 00:00:09]} 61. Rxc1 {[%clk 00:00:48]} Qb2 {[%clk
00:01:06]} 62. c8=Q {[%clk 00:00:55]} {[%emt 00:00:04]} Qxf2+ {[%clk 00:01:14]}
63. Kh1 {[%clk 00:01:04]} Qxg3 {[%clk 00:01:22]} {[%emt 00:00:03]} 64. Qc4
{[%clk 00:01:06]} {[%emt 00:00:08]} Qf3+ {[%clk 00:01:20]} {[%emt 00:00:12]} 65.
Kg1 {[%clk 00:01:15]} Qg3+ {[%clk 00:01:22]} {[%emt 00:00:08]} 66. Kf1 {[%clk
00:01:24]} {[%emt 00:00:01]} Qh3+ {[%clk 00:01:10]} {[%emt 00:00:22]} 67. Ke1
{[%clk 00:01:33]} Qh1+ {[%clk 00:00:37]} {[%emt 00:00:42]} 68. Kd2 {[%clk
00:01:42]} {[%emt 00:00:02]} Qg2+ {[%clk 00:00:32]} {[%emt 00:00:15]} 69. Qe2
{[%clk 00:01:50]} {[%emt 00:00:02]} Qd5+ {[%clk 00:00:36]} {[%emt 00:00:06]} 70.
Kc2 {[%clk 00:01:49]} {[%emt 00:00:08]} Qa2+ {[%clk 00:00:40]} {[%emt
00:00:09]} 71. Kd1 {[%clk 00:01:57]} {[%emt 00:00:02]} Qa4+ {[%clk 00:00:44]}
{[%emt 00:00:05]} 72. Ke1 {[%clk 00:01:59]} {[%emt 00:00:08]} Qxh4+ {[%clk
00:00:52]} {[%emt 00:00:02]} 73. Kd1 {[%clk 00:02:06]} {[%emt 00:00:04]} Qd4+
{[%clk 00:00:45]} {[%emt 00:00:17]} 74. Ke1 {[%clk 00:02:11]} {[%emt 00:00:04]}
h4 {[%clk 00:00:29]} {[%emt 00:00:28]} 75. Rc4 {[%clk 00:02:20]} {[%emt
00:00:01]} Qg1+ {[%clk 00:00:36]} {[%emt 00:00:02]} 76. Kd2 {[%clk 00:02:29]}
{[%emt 00:00:02]} Qg5+ {[%clk 00:00:43]} {[%emt 00:00:03]} 77. Qe3 {[%clk
00:02:33]} {[%emt 00:00:05]} Qg2+ {[%clk 00:00:48]} {[%emt 00:00:05]} 78. Qe2
{[%clk 00:02:42]} {[%emt 00:00:01]} Qd5+ {[%clk 00:00:32]} {[%emt 00:00:26]} 79.
Kc2 {[%clk 00:02:44]} {[%emt 00:00:07]} h3 {[%clk 00:00:38]} {[%emt 00:00:05]}
80. Re4 {[%clk 00:02:35]} {[%emt 00:00:19]} h2 {[%clk 00:00:40]} {[%emt
00:00:09]} 81. Qe1 {[%clk 00:02:41]} {[%emt 00:00:04]} Qa2+ {[%clk 00:00:35]}
{[%emt 00:00:15]} 82. Kd3 {[%clk 00:02:47]} {[%emt 00:00:07]} Qg2 {[%clk
00:00:42]} 83. Rh4 {[%clk 00:02:47]} {[%emt 00:00:09]} g5 {[%clk 00:00:39]}
{[%emt 00:00:13]} 84. Qxe5+ {[%clk 00:02:53]} {[%emt 00:00:05]} Kg6 {[%clk
00:00:48]} 85. Rxh2 {[%clk 00:02:58]} {[%emt 00:00:04]} Qf3+ {[%clk 00:00:57]}
86. Kd2 {[%clk 00:03:05]} {[%emt 00:00:03]} Qa3 {[%clk 00:00:54]} {[%emt
00:00:13]} 87. Qe4+ {[%clk 00:03:14]} {[%emt 00:00:01]} Kg7 {[%clk 00:00:52]}
{[%emt 00:00:12]} 88. Qd4+ {[%clk 00:03:16]} {[%emt 00:00:08]} Kg6 {[%clk
00:01:00]} {[%emt 00:00:03]} 89. Qd3+ {[%clk 00:03:25]} 1-0

[Event "Snabb-SM för veteraner, 50+ 2019"]
[Site "Schackcentrum, Vegagatan 20, Gothenburg, Sweden"]
[Date "2019.10.06"]
[Round "7.6"]
[White "Gamback, Bjorn"]
[Black "Bergre, Joachim"]
[Result "1/2-1/2"]
[TimeControl "15 minutes + 10 seconds per move from move one"]
[WhiteTitle "CM"]
[WhiteFideId "1703161"]
[BlackFideId "1704893"]
[WhiteElo "2120"]
[BlackElo "2035"]

1. e4 {[%clk 00:15:18]} {[%emt 00:00:02]} d6 {[%clk 00:15:02]} {[%emt
00:00:17]} 2. d4 {[%clk 00:15:26]} {[%emt 00:00:02]} g6 {[%clk 00:15:12]} 3.
Nc3 {[%clk 00:15:33]} {[%emt 00:00:04]} Bg7 {[%clk 00:15:21]} 4. g3 {[%clk
00:15:32]} {[%emt 00:00:12]} Nc6 {[%clk 00:14:54]} {[%emt 00:00:35]} 5. Be3
{[%clk 00:15:39]} {[%emt 00:00:03]} Nf6 {[%clk 00:14:51]} {[%emt 00:00:14]} 6.
Nge2 {[%clk 00:15:22]} {[%emt 00:00:26]} O-O {[%clk 00:14:36]} {[%emt
00:00:25]} 7. Bg2 {[%clk 00:15:24]} {[%emt 00:00:08]} Ng4 {[%clk 00:13:32]}
{[%emt 00:01:14]} 8. Bg5 {[%clk 00:15:07]} {[%emt 00:00:27]} h6 {[%clk
00:13:37]} {[%emt 00:00:05]} 9. Bc1 {[%clk 00:15:14]} {[%emt 00:00:03]} e5
{[%clk 00:13:43]} {[%emt 00:00:04]} 10. d5 {[%clk 00:15:18]} {[%emt 00:00:07]}
Ne7 {[%clk 00:10:43]} {[%emt 00:03:10]} 11. h3 {[%clk 00:15:26]} {[%emt
00:00:02]} Nf6 {[%clk 00:10:52]} {[%emt 00:00:01]} 12. O-O {[%clk 00:15:33]}
{[%emt 00:00:03]} Nd7 {[%clk 00:10:53]} {[%emt 00:00:08]} 13. Be3 {[%clk
00:12:42]} {[%emt 00:03:02]} f5 {[%clk 00:09:38]} {[%emt 00:01:25]} 14. Qd2
{[%clk 00:12:16]} {[%emt 00:00:35]} Kh7 {[%clk 00:09:38]} {[%emt 00:00:10]} 15.
f4 {[%clk 00:12:02]} {[%emt 00:00:24]} fxe4 {[%clk 00:09:20]} {[%emt 00:00:28]}
16. Bxe4 {[%clk 00:11:58]} {[%emt 00:00:14]} Nf6 {[%clk 00:08:39]} {[%emt
00:00:51]} 17. Bg2 {[%clk 00:11:52]} {[%emt 00:00:16]} Nf5 {[%clk 00:08:40]}
{[%emt 00:00:10]} 18. Bf2 {[%clk 00:11:56]} {[%emt 00:00:05]} exf4 {[%clk
00:07:01]} {[%emt 00:01:49]} 19. Nxf4 {[%clk 00:11:56]} {[%emt 00:00:10]} h5
{[%clk 00:07:06]} {[%emt 00:00:05]} 20. Rae1 {[%clk 00:11:14]} {[%emt
00:00:53]} Bh6 {[%clk 00:06:47]} {[%emt 00:00:29]} 21. Ne4 {[%clk 00:08:51]}
{[%emt 00:02:33]} Bd7 {[%clk 00:05:30]} {[%emt 00:01:27]} 22. Qc3 {[%clk
00:07:26]} {[%emt 00:01:35]} Nxe4 {[%clk 00:04:01]} {[%emt 00:01:39]} 23. Rxe4
{[%clk 00:07:26]} {[%emt 00:00:10]} Bg7 {[%clk 00:03:34]} {[%emt 00:00:37]} 24.
Qe1 {[%clk 00:07:10]} {[%emt 00:00:26]} Qg5 {[%clk 00:02:59]} {[%emt 00:00:44]}
25. g4 {[%clk 00:03:40]} {[%emt 00:03:41]} hxg4 {[%clk 00:02:12]} {[%emt
00:00:56]} 26. hxg4 {[%clk 00:03:49]} Nh6 {[%clk 00:01:39]} {[%emt 00:00:42]}
27. Bh4 {[%clk 00:03:58]} {[%emt 00:00:02]} Qxg4 {[%clk 00:01:43]} {[%emt
00:00:06]} 28. Ne6 {[%clk 00:03:50]} {[%emt 00:00:18]} Rxf1+ {[%clk 00:01:51]}
{[%emt 00:00:02]} 29. Qxf1 {[%clk 00:03:54]} {[%emt 00:00:06]} Bxe6 {[%clk
00:01:38]} {[%emt 00:00:22]} 30. Rxg4 {[%clk 00:03:59]} {[%emt 00:00:05]} Bxg4
{[%clk 00:01:48]} 31. Qc4 {[%clk 00:03:51]} {[%emt 00:00:18]} Bf5 {[%clk
00:01:22]} {[%emt 00:00:36]} 32. Qxc7 {[%clk 00:03:54]} {[%emt 00:00:06]} Ng4
{[%clk 00:01:26]} {[%emt 00:00:07]} 33. Be1 {[%clk 00:03:23]} {[%emt 00:00:40]}
Rc8 {[%clk 00:01:26]} {[%emt 00:00:11]} 34. Qxb7 {[%clk 00:03:31]} {[%emt
00:00:03]} Rxc2 {[%clk 00:01:12]} {[%emt 00:00:23]} 35. Bf3 {[%clk 00:03:11]}
{[%emt 00:00:29]} Ne5 {[%clk 00:01:18]} {[%emt 00:00:04]} 36. Bd1 {[%clk
00:02:49]} {[%emt 00:00:33]} Rxb2 {[%clk 00:01:09]} {[%emt 00:00:20]} 37. Qxa7
{[%clk 00:02:39]} {[%emt 00:00:19]} Rb1 {[%clk 00:01:16]} {[%emt 00:00:03]} 38.
Qa4 {[%clk 00:02:48]} Bg4 {[%clk 00:00:44]} {[%emt 00:00:41]} 39. Bxg4 {[%clk
00:02:49]} {[%emt 00:00:09]} Rxe1+ {[%clk 00:00:52]} {[%emt 00:00:03]} 40. Kf2
{[%clk 00:02:59]} Nd3+ {[%clk 00:00:54]} {[%emt 00:00:08]} 41. Kg2 {[%clk
00:03:02]} {[%emt 00:00:05]} Be5 {[%clk 00:00:58]} {[%emt 00:00:08]} 42. Qd7+
{[%clk 00:02:55]} {[%emt 00:00:14]} Kh6 {[%clk 00:01:07]} {[%emt 00:00:04]} 43.
Qe7 {[%clk 00:02:33]} {[%emt 00:00:31]} Nf4+ {[%clk 00:01:13]} {[%emt
00:00:04]} 44. Kf3 {[%clk 00:02:38]} {[%emt 00:00:05]} Re3+ {[%clk 00:01:11]}
{[%emt 00:00:13]} 45. Kf2 {[%clk 00:02:36]} {[%emt 00:00:11]} Rd3 {[%clk
00:01:12]} {[%emt 00:00:10]} 46. Qh4+ {[%clk 00:02:41]} {[%emt 00:00:04]} Kg7
{[%clk 00:01:21]} {[%emt 00:00:01]} 47. Qe7+ {[%clk 00:02:50]} Kh6 {[%clk
00:01:30]} 48. Qh4+ {[%clk 00:03:00]} {[%emt 00:00:01]} Kg7 {[%clk 00:01:39]}
{[%emt 00:00:01]} 49. Qe7+ {[%clk 00:03:08]} {[%emt 00:00:02]} Kh6 {[%clk
00:01:47]} 1/2-1/2

[Event "Snabb-SM för veteraner, 50+ 2019"]
[Site "Schackcentrum, Vegagatan 20, Gothenburg, Sweden"]
[Date "2019.10.06"]
[Round "7.7"]
[White "Moller, Mikael"]
[Black "Svenn, Matti"]
[Result "0-1"]
[TimeControl "15 minutes + 10 seconds per move from move one"]
[WhiteFideId "1738461"]
[BlackFideId "1705091"]
[WhiteElo "1826"]
[BlackElo "2195"]

1. d4 {[%clk 00:15:19]} Nf6 {[%clk 00:15:17]} {[%emt 00:00:03]} 2. Nf3 {[%clk
00:15:20]} {[%emt 00:00:10]} g6 {[%clk 00:15:23]} {[%emt 00:00:03]} 3. Nc3
{[%clk 00:15:25]} {[%emt 00:00:05]} Bg7 {[%clk 00:15:24]} {[%emt 00:00:09]} 4.
e4 {[%clk 00:15:32]} {[%emt 00:00:03]} d6 {[%clk 00:15:32]} {[%emt 00:00:02]} 5.
Be3 {[%clk 00:15:04]} {[%emt 00:00:38]} O-O {[%clk 00:15:38]} {[%emt 00:00:03]}
6. Qd2 {[%clk 00:15:11]} {[%emt 00:00:04]} Ng4 {[%clk 00:14:47]} {[%emt
00:01:01]} 7. Bg5 {[%clk 00:15:12]} {[%emt 00:00:10]} h6 {[%clk 00:14:46]}
{[%emt 00:00:11]} 8. Bh4 {[%clk 00:15:19]} {[%emt 00:00:03]} Nc6 {[%clk
00:14:30]} {[%emt 00:00:26]} 9. h3 {[%clk 00:15:11]} {[%emt 00:00:19]} Nf6
{[%clk 00:14:38]} 10. Bxf6 {[%clk 00:15:18]} {[%emt 00:00:03]} exf6 {[%clk
00:14:42]} {[%emt 00:00:05]} 11. O-O-O {[%clk 00:15:21]} {[%emt 00:00:07]} a6
{[%clk 00:14:33]} {[%emt 00:00:20]} 12. g4 {[%clk 00:15:16]} {[%emt 00:00:14]}
b5 {[%clk 00:14:29]} {[%emt 00:00:14]} 13. Kb1 {[%clk 00:15:18]} {[%emt
00:00:08]} Re8 {[%clk 00:14:29]} {[%emt 00:00:09]} 14. Re1 {[%clk 00:15:07]}
{[%emt 00:00:23]} Bb7 {[%clk 00:13:45]} {[%emt 00:00:54]} 15. Rg1 {[%clk
00:14:57]} {[%emt 00:00:20]} Na5 {[%clk 00:11:12]} {[%emt 00:02:42]} 16. Bd3
{[%clk 00:14:26]} {[%emt 00:00:41]} c5 {[%clk 00:11:19]} {[%emt 00:00:03]} 17.
d5 {[%clk 00:14:18]} {[%emt 00:00:19]} b4 {[%clk 00:11:12]} {[%emt 00:00:16]}
18. Nd1 {[%clk 00:14:12]} {[%emt 00:00:17]} c4 {[%clk 00:11:16]} {[%emt
00:00:06]} 19. Bf1 {[%clk 00:14:17]} {[%emt 00:00:05]} c3 {[%clk 00:11:15]}
{[%emt 00:00:10]} 20. Qf4 {[%clk 00:13:42]} {[%emt 00:00:45]} cxb2 {[%clk
00:10:37]} {[%emt 00:00:49]} 21. Bd3 {[%clk 00:13:37]} {[%emt 00:00:15]} Bc8
{[%clk 00:09:16]} {[%emt 00:01:31]} 22. Nxb2 {[%clk 00:13:20]} {[%emt
00:00:11]} Nb7 {[%clk 00:09:10]} {[%emt 00:00:32]} 23. Nd4 {[%clk 00:13:21]}
{[%emt 00:00:08]} Bd7 {[%clk 00:09:18]} {[%emt 00:00:03]} 24. h4 {[%clk
00:13:11]} {[%emt 00:00:19]} Bb5 {[%clk 00:09:26]} {[%emt 00:00:02]} 25. h5
{[%clk 00:13:08]} {[%emt 00:00:14]} Bxd3 {[%clk 00:09:33]} {[%emt 00:00:03]} 26.
cxd3 {[%clk 00:13:16]} {[%emt 00:00:02]} f5 {[%clk 00:09:25]} {[%emt 00:00:18]}
27. Nc6 {[%clk 00:13:24]} {[%emt 00:00:02]} Qf6 {[%clk 00:09:34]} 28. Nc4
{[%clk 00:13:21]} {[%emt 00:00:13]} Qa1+ {[%clk 00:09:22]} {[%emt 00:00:21]} 29.
Kc2 {[%clk 00:13:30]} {[%emt 00:00:02]} Qxa2+ {[%clk 00:09:30]} {[%emt
00:00:02]} 30. Kd1 {[%clk 00:13:34]} {[%emt 00:00:05]} Qb3+ {[%clk 00:09:09]}
{[%emt 00:00:32]} 31. Ke2 {[%clk 00:13:27]} {[%emt 00:00:16]} fxe4 {[%clk
00:09:16]} 0-1